bitfinex-derivatives/quotes_ETHF0:USTF0_20240930
["timestamp","ask_amount","ask_price","bid_price","bid_amount"]
[1727712228961,0.38447,2601.1,2600.9,0.3845]
[1727712229263,0.38449,2601.0,2600.8,0.38451]
[1727712230058,0.38449,2601.0,2600.7,0.38452]
[1727712230258,0.96114,2601.2,2600.4,3.2078]
[1727712230462,0.3845,2600.9,2600.7,0.38452]
[1727712230663,0.38447,2601.1,2600.7,0.38452]
[1727712230854,0.38447,2601.1,2600.4,3.2078]
[1727712230855,4.188,2601.3,2600.5,0.38456]
[1727712231064,3.2078,2601.4,2600.4,3.2078]
[1727712231264,0.38449,2601.0,2600.8,0.38451]
[1727712231568,0.38447,2601.1,2600.8,0.3845]
[1727712231757,0.38447,2601.1,2600.7,3.2078]
[1727712231954,0.38447,2601.1,2600.8,0.3845]
[1727712232361,2.95,2601.4,2600.7,3.2078]
[1727712232563,0.9611,2601.3,2600.9,0.3845]
[1727712232765,5.14903,2601.6,2600.7,3.2078]
[1727712232966,0.38445,2601.2,2601.0,0.38448]
[1727712233172,0.96104,2601.5,2601.1,1.079]
[1727712233366,0.38445,2601.2,2601.1,1.079]
[1727712234070,0.38444,2601.4,2601.1,1.46346]
[1727712234262,3.91096,2601.7,2601.1,1.079]
[1727712234468,0.38445,2601.2,2601.1,1.079]
[1727712235262,0.96108,2601.4,2600.7,3.2078]
[1727712235468,0.38449,2601.0,2600.8,0.38451]
[1727712235970,0.38449,2601.0,2600.7,3.2078]
[1727712236167,0.38449,2601.0,2600.8,0.38451]
[1727712236676,3.2078,2601.5,2600.7,3.2078]
[1727712236862,0.38451,2600.8,2600.7,3.2078]
[1727712237374,0.38451,2600.9,2600.7,3.59233]
[1727712237576,0.38449,2601.0,2600.8,0.38451]
[1727712237870,4.18,2601.4,2600.7,3.2078]
[1727712238070,1.92148,2602.3,2601.3,3.2078]
[1727712238269,0.96073,2602.3,2601.6,3.2078]
[1727712238464,0.38433,2602.1,2601.6,3.2078]
[1727712238664,0.38431,2602.2,2601.8,0.38435]
[1727712238864,0.96062,2602.6,2601.9,0.38434]
[1727712239068,0.96062,2602.6,2602.0,0.38432]
[1727712239266,0.38428,2602.4,2602.0,0.38432]
[1727712239463,0.96062,2602.6,2601.6,3.2078]
[1727712239464,0.3843,2602.3,2601.9,0.38433]
[1727712239665,0.38428,2602.4,2602.0,0.38433]
[1727712239972,0.38429,2602.3,2602.0,0.38433]
[1727712240676,0.38431,2602.2,2601.8,0.38436]
[1727712240873,0.38431,2602.2,2601.6,3.2078]
[1727712240874,0.3843,2602.3,2601.9,0.38434]
[1727712241066,2.51691,2602.7,2601.9,3.2078]
[1727712241375,0.38424,2602.7,2602.4,0.38427]
[1727712241572,3.2078,2602.8,2602.0,2.572]
[1727712241775,0.38427,2602.5,2602.2,0.3843]
[1727712242273,0.38425,2602.6,2602.3,0.38428]
[1727712242473,3.2078,2602.8,2602.2,3.2078]
[1727712242777,0.38424,2602.7,2602.4,0.38426]
[1727712242972,3.2078,2602.8,2602.2,3.2078]
[1727712243173,0.38423,2602.7,2602.3,0.38428]
[1727712243372,3.2078,2602.8,2602.2,3.2078]
[1727712243567,0.38423,2602.7,2602.4,0.38426]
[1727712243770,0.38423,2602.7,2602.5,0.38426]
[1727712243975,0.38421,2602.9,2602.6,0.38424]
[1727712244171,0.38419,2603.0,2602.7,0.38422]
[1727712244375,2.4713,2603.2,2602.5,3.2078]
[1727712244376,1.5109,2603.2,2602.5,3.2078]
[1727712244578,0.38424,2602.7,2602.5,3.2078]
[1727712244778,0.96047,2603.0,2602.5,3.59205]
[1727712244779,0.38422,2602.8,2602.5,3.59205]
[1727712245176,1.5109,2603.2,2602.4,0.38426]
[1727712245177,0.38424,2602.7,2602.4,0.38426]
[1727712245575,2.47132,2603.2,2602.2,4.16855]
[1727712245768,7.3878,2603.3,2602.2,4.16855]
[1727712245974,0.38416,2603.2,2602.9,0.38419]
[1727712246178,7.3878,2603.3,2602.8,3.2078]
[1727712246179,3.59195,2603.3,2603.0,0.38418]
[1727712246483,0.38415,2603.3,2603.0,0.38418]
[1727712246677,4.16806,2603.6,2602.9,1.5744]
[1727712246678,0.38416,2603.2,2602.9,1.95859]
[1727712247178,0.38419,2603.0,2602.9,1.5744]
[1727712248089,0.96042,2603.2,2602.6,0.38424]
[1727712248090,0.38422,2602.8,2602.6,0.38424]
[1727712248278,0.38421,2602.9,2602.5,0.38426]
[1727712248477,0.38419,2603.0,2602.6,0.38424]
[1727712248681,0.96044,2603.1,2602.6,0.38424]
[1727712248886,3.2078,2603.3,2602.5,0.38426]
[1727712248887,0.38424,2602.7,2602.5,0.38426]
[1727712249182,4.16819,2603.3,2602.4,3.2078]
[1727712249183,0.96045,2603.1,2602.6,0.38424]
[1727712249379,0.38422,2602.8,2602.6,0.38424]
[1727712249585,7.3878,2603.3,2602.4,3.2078]
[1727712249773,0.38425,2602.6,2602.3,1.91868]
[1727712249973,0.96054,2602.9,2602.4,0.38427]
[1727712250172,4.8033,2603.2,2602.3,1.5344]
[1727712250173,0.96047,2603.0,2602.3,1.5344]
[1727712250480,0.38424,2602.7,2602.5,0.38426]
[1727712250680,0.38424,2602.7,2602.3,1.5344]
[1727712250885,3.2078,2603.2,2602.5,0.96064]
[1727712251084,3.2078,2603.2,2603.0,0.38419]
[1727712251286,5.14031,2603.5,2602.7,3.2078]
[1727712251287,0.38413,2603.4,2603.2,0.38415]
[1727712251876,0.38413,2603.4,2602.8,3.98815]
[1727712251877,3.2078,2603.9,2603.0,3.2078]
[1727712252085,3.2078,2603.9,2603.1,1.5013]
[1727712252287,4.18,2604.0,2603.6,3.2078]
[1727712252475,1.4764,2604.2,2603.3,3.2078]
[1727712252884,0.38404,2604.0,2603.6,0.38409]
[1727712253571,1.4764,2604.2,2603.6,3.2078]
[1727712253777,0.38403,2604.1,2603.7,0.38408]
[1727712254078,0.38408,2603.8,2603.6,3.2078]
[1727712254279,0.38406,2603.9,2603.6,3.2078]
[1727712254477,0.38407,2603.8,2603.6,3.2078]
[1727712254984,3.91003,2604.2,2603.2,3.59195]
[1727712254985,0.3841,2603.6,2603.2,3.59195]
[1727712255185,4.1679,2604.0,2603.2,3.2078]
[1727712255493,0.38417,2603.2,2602.9,3.2078]
[1727712255779,7.3878,2603.7,2602.8,1.5112]
[1727712255979,41.76016,2603.6,2602.8,1.5112]
[1727712256175,3.2078,2603.4,2602.8,1.5112]
[1727712256381,3.2078,2603.4,2602.6,3.2078]
[1727712256382,0.38415,2603.0,2602.6,3.2078]
[1727712256800,0.38415,2603.0,2602.6,3.592]
[1727712258281,0.9603,2603.2,2602.6,3.2078]
[1727712258487,0.38417,2602.9,2602.6,3.2078]
[1727712258690,0.38418,2602.8,2602.6,3.2078]
[1727712259189,3.91027,2603.3,2602.6,3.2078]
[1727712259379,1.5334,2603.1,2602.3,3.2078]
[1727712259576,0.3842,2602.7,2602.3,3.59204]
[1727712259782,0.38421,2602.6,2602.3,3.59204]
[1727712260482,0.96038,2603.0,2602.4,0.38423]
[1727712260682,0.96038,2603.0,2602.3,3.2078]
[1727712260888,0.38419,2602.8,2602.4,0.38422]
[1727712261385,0.38419,2602.8,2602.5,0.38422]
[1727712261590,0.38419,2602.8,2602.4,0.38423]
[1727712261893,0.38419,2602.8,2602.3,3.2078]
[1727712262194,0.38419,2602.8,2602.5,0.38422]
[1727712262388,0.96038,2603.0,2602.3,3.2078]
[1727712262589,0.38419,2602.7,2602.4,0.38423]
[1727712262782,0.38422,2602.6,2602.3,3.59204]
[1727712262985,0.3842,2602.7,2602.4,0.38423]
[1727712263593,0.96041,2602.9,2602.4,0.38423]
[1727712263885,0.3842,2602.7,2602.5,0.38422]
[1727712264086,0.38421,2602.6,2602.4,0.38423]
[1727712264790,0.3842,2602.7,2602.4,0.38423]
[1727712264993,0.38421,2602.6,2602.4,0.38423]
[1727712265492,0.38421,2602.6,2602.3,3.2078]
[1727712265493,0.38422,2602.6,2602.3,3.59204]
[1727712265689,0.96046,2602.8,2602.3,3.2078]
[1727712265890,0.38421,2602.6,2602.3,3.2078]
[1727712266099,0.38421,2602.6,2602.4,0.38424]
[1727712266802,0.38423,2602.5,2602.3,3.59205]
[1727712266990,0.38422,2602.6,2602.4,0.38424]
[1727712267190,0.38423,2602.5,2602.3,3.59204]
[1727712267990,8.9212,2603.1,2602.3,3.2078]
[1727712268192,0.38423,2602.5,2602.3,3.59205]
[1727712269097,0.38424,2602.4,2602.3,3.2078]
[1727712269496,0.38422,2602.6,2602.4,0.38423]
[1727712269698,0.38422,2602.5,2602.4,0.38423]
[1727712270008,0.38422,2602.5,2602.3,3.59204]
[1727712270213,0.38424,2602.4,2602.3,3.59204]
[1727712270403,0.96039,2603.0,2602.4,0.38424]
[1727712270404,0.38421,2602.6,2602.4,0.38424]
[1727712270610,0.38422,2602.6,2602.4,0.38424]
[1727712271424,0.38421,2602.6,2602.5,0.38422]
[1727712271813,0.3842,2602.7,2602.5,0.38421]
[1727712272123,0.3842,2602.7,2602.6,3.59201]
[1727712272320,5.14037,2603.1,2602.6,3.2078]
[1727712272625,0.38417,2602.9,2602.8,0.38418]
[1727712272920,0.38415,2603.0,2602.6,3.2078]
[1727712273112,2.95,2603.2,2602.3,3.2078]
[1727712273315,0.38424,2602.4,2602.3,3.2078]
[1727712274423,0.38423,2602.5,2602.3,3.59205]
[1727712274823,0.38424,2602.4,2602.3,3.2078]
[1727712275019,0.38421,2602.6,2602.4,0.38423]
[1727712275209,0.3842,2602.7,2602.3,3.2078]
[1727712275415,0.96043,2602.9,2602.5,0.38422]
[1727712275611,0.38419,2602.8,2602.3,3.2078]
[1727712276013,4.18,2603.0,2602.3,3.2078]
[1727712276218,10.0198,2603.4,2602.2,1.5254]
[1727712276219,3.2078,2603.4,2602.6,3.2078]
[1727712276419,0.38419,2602.8,2602.6,3.2078]
[1727712276619,0.38419,2602.8,2602.6,3.592]
[1727712277023,0.96038,2603.0,2602.6,3.2078]
[1727712277223,0.38419,2602.7,2602.6,3.2078]
[1727712277534,0.38418,2602.8,2602.6,3.592]
[1727712278024,0.38416,2602.9,2602.7,0.38419]
[1727712278416,0.96036,2603.1,2602.6,3.2078]
[1727712278617,0.38415,2603.0,2602.8,0.38417]
[1727712278823,0.38415,2603.0,2602.6,3.2078]
[1727712279124,5.27334057,2603.5,2602.7,1.464]
[1727712279125,5.14021,2603.5,2602.7,1.464]
[1727712279324,0.38408,2603.5,2603.0,0.38415]
[1727712279631,0.38412,2603.2,2603.1,1.5327]
[1727712279827,0.96023,2603.5,2603.1,1.5327]
[1727712280029,0.38406,2603.7,2603.4,0.38408]
[1727712280227,0.38405,2603.7,2603.5,0.38407]
[1727712280532,0.3841,2603.3,2603.2,3.2078]
[1727712280724,0.3841,2603.3,2603.1,1.91683]
[1727712280926,0.3841,2603.4,2603.2,3.59191]
[1727712281128,0.96015,2603.7,2603.3,0.3841]
[1727712281129,0.38408,2603.5,2603.3,0.3841]
[1727712281327,0.38407,2603.6,2603.4,0.38408]
[1727712281529,0.95999,2604.1,2603.5,3.2078]
[1727712281828,0.95999,2604.1,2603.6,3.34385]
[1727712281829,0.38404,2603.8,2603.6,3.34385]
[1727712282221,0.38402,2603.9,2603.6,2.9598]
[1727712282422,0.38402,2603.9,2603.7,0.38404]
[1727712282622,0.38402,2603.9,2603.8,1.5461]
[1727712283024,3.2078,2604.3,2603.8,4.7539]
[1727712283219,0.38402,2603.9,2603.8,4.7539]
[1727712283419,0.38401,2604.0,2603.8,4.7539]
[1727712283622,0.38401,2604.0,2603.8,5.13792]
[1727712284131,0.384,2604.0,2603.8,5.13792]
[1727712284332,0.38401,2604.0,2603.9,3.84]
[1727712284629,3.2078,2604.3,2603.8,4.7539]
[1727712284834,0.38402,2603.9,2603.8,4.7539]
[1727712286026,0.95997,2604.1,2603.8,4.7539]
[1727712286222,0.38402,2603.9,2603.8,5.13793]
[1727712286428,0.38402,2603.9,2603.8,4.7539]
[1727712287038,0.95993,2604.3,2603.8,4.7539]
[1727712287220,0.38394,2604.5,2604.3,0.38396]
[1727712287426,0.38394,2604.5,2604.2,3.2078]
[1727712287625,0.38392,2604.6,2604.2,3.2078]
[1727712287918,0.38393,2604.5,2604.3,0.38396]
[1727712288323,0.95973,2604.8,2604.2,3.2078]
[1727712288525,0.38393,2604.5,2604.3,0.38395]
[1727712288831,0.38394,2604.5,2604.2,3.59176]
[1727712289029,0.38394,2604.5,2604.3,0.38395]
[1727712289329,0.38394,2604.5,2604.2,3.59176]
[1727712289725,0.3839,2604.7,2604.2,3.59176]
[1727712289726,0.38392,2604.6,2604.3,0.38394]
[1727712290031,0.95971,2604.8,2604.2,3.2078]
[1727712290330,0.95975,2604.7,2604.2,3.2078]
[1727712290636,0.38391,2604.7,2604.4,0.38394]
[1727712290825,0.38391,2604.6,2604.4,0.38394]
[1727712291128,0.38391,2604.7,2604.4,0.38394]
[1727712291326,0.38389,2604.8,2604.5,0.38392]
[1727712291631,3.2078,2605.1,2604.5,3.59172]
[1727712291838,0.38389,2604.8,2604.5,3.59172]
[1727712292045,0.38389,2604.8,2604.5,5.19332]
[1727712292340,0.3839,2604.7,2604.5,4.8094]
[1727712292632,0.38391,2604.6,2604.5,1.6016]
[1727712292834,0.95968,2604.9,2604.5,1.6016]
[1727712292835,0.38391,2604.7,2604.5,1.6016]
[1727712293028,0.3839,2604.7,2604.5,1.6016]
[1727712293537,0.38391,2604.6,2604.5,1.6016]
[1727712293744,0.3839,2604.7,2604.5,1.6016]
[1727712294227,0.38391,2604.6,2604.5,1.6016]
[1727712295234,2.916681,2606.2,2604.6,2.87936]
[1727712295425,3.59149,2606.2,2605.7,0.38375]
[1727712295624,4.06942,2606.7,2606.1,3.2078]
[1727712295826,0.95905,2606.6,2605.9,0.38372]
[1727712296021,0.38365,2606.4,2605.8,3.2078]
[1727712296326,3.1104,2606.7,2605.8,3.59153]
[1727712296327,0.95907,2606.6,2605.8,3.59153]
[1727712296521,0.38365,2606.4,2605.8,3.59153]
[1727712296730,0.38365,2606.4,2605.9,0.38372]
[1727712297127,0.38365,2606.4,2605.8,3.2078]
[1727712297327,0.38365,2606.4,2605.9,0.38372]
[1727712297537,3.1104,2606.7,2605.8,3.2078]
[1727712297729,0.95905,2606.6,2605.8,3.59153]
[1727712297926,0.38366,2606.4,2605.8,3.59153]
[1727712298131,3.1104,2606.7,2605.9,0.38371]
[1727712298334,3.1104,2606.7,2605.8,3.2078]
[1727712298335,0.38367,2606.3,2605.8,3.59153]
[1727712298844,3.1104,2606.7,2605.8,3.2078]
[1727712299138,3.1104,2606.7,2606.1,3.2078]
[1727712299338,3.1104,2606.7,2606.1,3.59149]
[1727712299339,0.38362,2606.6,2606.1,3.59149]
[1727712299842,3.49401,2606.7,2606.1,3.2078]
[1727712300131,1.89792,2606.7,2606.1,3.2078]
[1727712300336,0.38365,2606.5,2606.1,3.2078]
[1727712300634,0.38365,2606.4,2606.1,3.2078]
[1727712300829,1.5143,2606.7,2606.1,3.2078]
[1727712301039,0.38364,2606.5,2606.1,3.2078]
[1727712301430,1.5143,2606.7,2606.1,3.2078]
[1727712301630,0.38362,2606.6,2606.1,3.59148]
[1727712302030,1.5143,2606.7,2606.1,3.2078]
[1727712302325,0.38362,2606.6,2606.1,3.59148]
[1727712302731,0.38363,2606.5,2606.1,3.59148]
[1727712303340,0.38365,2606.4,2606.1,3.2078]
[1727712303539,0.38368,2606.2,2606.1,3.2078]
[1727712303838,0.38366,2606.3,2606.1,3.2078]
[1727712304035,0.95905,2606.6,2606.1,3.2078]
[1727712304335,0.38365,2606.4,2606.1,3.2078]
[1727712304643,0.38366,2606.3,2606.1,3.2078]
[1727712304936,0.38368,2606.2,2606.1,3.2078]
[1727712305440,0.38372,2605.9,2605.8,3.2078]
[1727712305642,0.38371,2606.0,2605.8,3.2078]
[1727712306439,0.38372,2605.9,2605.8,3.2078]
[1727712307042,0.38376,2605.6,2605.5,3.2078]
[1727712307230,0.38376,2605.6,2605.3,0.3838]
[1727712307231,0.38378,2605.6,2605.3,0.3838]
[1727712307532,0.38378,2605.5,2605.3,0.3838]
[1727712307738,0.95932,2605.9,2605.2,4.7945]
[1727712307939,0.38377,2605.6,2605.5,3.2078]
[1727712308132,0.95932,2605.9,2605.5,3.2078]
[1727712308336,0.38376,2605.6,2605.5,3.2078]
[1727712308538,0.38381,2605.4,2605.2,3.2078]
[1727712308745,0.38381,2605.3,2605.2,3.2078]
[1727712308937,0.95944,2605.6,2605.2,3.2078]
[1727712309338,0.38381,2605.3,2605.2,3.2078]
[1727712310037,0.38381,2605.3,2604.9,3.2078]
[1727712310038,0.38386,2605.0,2604.9,3.2078]
[1727712310645,0.38385,2605.1,2604.9,3.2078]
[1727712310841,0.38385,2605.0,2604.8,0.38388]
[1727712311237,0.95953,2605.3,2604.9,0.38386]
[1727712311442,4.18,2605.6,2604.9,3.59166]
[1727712311646,0.38384,2605.1,2604.9,3.59166]
[1727712311856,0.38385,2605.0,2604.9,3.2078]
[1727712312145,0.38385,2605.0,2604.6,3.0615]
[1727712312146,0.95953,2605.3,2604.6,3.0615]
[1727712312341,0.3839,2604.7,2604.6,3.0615]
[1727712312850,0.38389,2604.8,2604.6,3.44541]
[1727712313045,0.3839,2604.7,2604.6,3.0615]
[1727712313235,0.3839,2604.7,2604.6,1.6019]
[1727712315551,0.38393,2604.5,2604.3,0.38395]
[1727712315950,0.38396,2604.4,2604.2,4.7007]
[1727712316240,0.38396,2604.3,2604.2,3.2078]
[1727712316450,0.95982,2604.6,2604.2,3.2078]
[1727712316644,0.38395,2604.4,2604.2,3.59177]
[1727712317045,0.38393,2604.5,2604.3,0.38395]
[1727712317648,0.95965,2605.0,2604.2,3.2078]
[1727712317849,1.71582115,2605.8,2604.5,3.2078]
[1727712317850,1.4761,2605.4,2604.5,3.2078]
[1727712318044,0.9596,2605.1,2604.5,3.2078]
[1727712318250,0.38391,2604.6,2604.5,3.2078]
[1727712320242,0.38391,2604.7,2604.5,3.59172]
[1727712320448,0.95969,2604.9,2604.5,3.2078]
[1727712320650,0.3839,2604.7,2604.5,3.59172]
[1727712320843,0.38389,2604.8,2604.6,0.38391]
[1727712321148,0.38387,2604.9,2604.7,0.38389]
[1727712321953,0.9596,2605.1,2604.7,0.38389]
[1727712322140,0.9596,2605.1,2604.5,4.72]
[1727712322141,7.3878,2605.2,2604.5,4.72]
[1727712322348,0.38384,2605.1,2604.9,0.38386]
[1727712322649,0.38383,2605.2,2605.0,0.38384]
[1727712323342,0.38385,2605.0,2604.9,3.0697]
[1727712323546,0.38387,2604.9,2604.8,3.2078]
[1727712323747,0.38387,2604.9,2604.1,0.95994]
[1727712323748,0.38395,2604.4,2604.2,3.59176]
[1727712324059,0.38396,2604.3,2604.2,3.2078]
[1727712324252,0.95981,2604.6,2604.2,3.59176]
[1727712324253,0.38395,2604.4,2604.2,3.59176]
[1727712324452,0.38396,2604.3,2604.2,3.2078]
[1727712325144,0.38395,2604.4,2604.2,3.59176]
[1727712325350,0.38396,2604.3,2604.2,3.2078]
[1727712326244,1.73319831,2604.9,2604.2,3.2078]
[1727712326441,0.38396,2604.3,2604.2,3.2078]
[1727712329350,0.38397,2604.2,2604.1,1.5327]
[1727712329855,0.384,2604.0,2603.9,3.2078]
[1727712330058,0.95995,2604.2,2603.9,3.2078]
[1727712330249,0.38399,2604.1,2603.9,3.59181]
[1727712331155,0.95992,2604.3,2603.9,3.2078]
[1727712331351,0.384,2604.0,2603.9,3.2078]
[1727712331546,0.95992,2604.3,2603.7,2.01304]
[1727712331755,0.384,2604.0,2603.8,0.38402]
[1727712332054,0.95993,2604.2,2603.7,1.629]
[1727712332055,0.38399,2604.1,2603.9,3.59181]
[1727712332352,41.75984,2604.5,2603.9,3.59181]
[1727712332353,41.75984,2604.5,2603.9,3.2078]
[1727712332559,0.384,2604.0,2603.9,3.2078]
[1727712332949,0.95986,2604.4,2603.9,3.2078]
[1727712333161,0.38399,2604.1,2603.9,3.2078]
[1727712333456,0.12843968,2604.7,2604.0,2.4]
[1727712333661,0.95978,2604.7,2604.1,0.38398]
[1727712333855,0.38397,2604.3,2604.1,0.38398]
[1727712334156,0.95985,2604.5,2604.1,0.38398]
[1727712334363,0.38396,2604.3,2604.2,0.38397]
[1727712335250,0.95985,2604.5,2604.0,4.0213]
[1727712335448,0.95972,2604.8,2604.2,6.56773]
[1727712335766,0.38391,2604.7,2604.5,0.38392]
[1727712336059,0.38391,2604.6,2604.5,1.5797]
[1727712336558,0.3839,2604.7,2604.5,1.96362]
[1727712336949,0.38391,2604.6,2604.5,1.5797]
[1727712337151,0.3839,2604.7,2604.5,1.96362]
[1727712337654,0.95969,2604.9,2604.5,1.5797]
[1727712337847,0.38391,2604.6,2604.5,4.7875]
[1727712339156,0.38391,2604.7,2604.5,4.7875]
[1727712339359,0.38389,2604.8,2604.5,4.7875]
[1727712339653,0.38389,2604.8,2604.6,0.38391]
[1727712339858,0.95968,2604.9,2604.5,4.7875]
[1727712340156,0.38391,2604.7,2604.5,4.7875]
[1727712340555,0.38391,2604.7,2604.5,5.17142]
[1727712340859,0.38391,2604.7,2604.5,1.5797]
[1727712341061,0.95968,2604.9,2604.5,4.7875]
[1727712341252,0.38391,2604.6,2604.5,4.7875]
[1727712342363,0.38394,2604.4,2604.3,1.6581]
[1727712342652,0.38402,2603.9,2603.8,3.2078]
[1727712343157,2.4,2604.2,2603.7,1.6459]
[1727712343158,0.38403,2603.8,2603.7,1.6459]
[1727712343359,0.38412,2603.3,2603.1,3.2078]
[1727712343563,2.4,2603.7,2603.1,3.2078]
[1727712344062,2.4,2603.3,2602.8,8.1021]
[1727712344265,0.38412,2603.2,2602.8,8.1021]
[1727712344562,4.16796,2603.6,2602.8,8.1021]
[1727712344563,2.4,2603.5,2602.8,8.1021]
[1727712344757,0.9603,2603.2,2602.8,8.1021]
[1727712344953,0.38416,2603.0,2602.8,8.1021]
[1727712345463,0.38412,2603.2,2602.9,0.38416]
[1727712345961,0.38411,2603.3,2603.0,0.38415]
[1727712346171,0.96019,2603.5,2602.9,0.38415]
[1727712346456,0.96019,2603.5,2602.8,8.1021]
[1727712346457,40.8,2603.8,2603.1,3.2078]
[1727712346652,0.38409,2603.4,2603.1,3.59193]
[1727712346852,0.38408,2603.5,2603.1,3.59193]
[1727712347154,2.95,2604.2,2603.1,3.2078]
[1727712347355,2.95,2604.2,2602.8,4.8943]
[1727712347356,0.95995,2604.2,2603.6,0.38405]
[1727712347556,44.0695,2604.4,2603.7,3.1214]
[1727712347856,2.95,2604.2,2603.0,3.2078]
[1727712348060,0.38409,2603.4,2603.1,3.2241]
[1727712348259,0.96012,2603.7,2603.1,3.2241]
[1727712348453,0.38411,2603.3,2603.1,3.2241]
[1727712348852,0.96018,2603.6,2603.1,3.60823]
[1727712349063,0.38408,2603.5,2603.2,0.38411]
[1727712349374,4.16784,2604.0,2603.2,0.38411]
[1727712349556,0.38409,2603.4,2603.2,0.38411]
[1727712349754,4.16784,2604.0,2603.2,0.38411]
[1727712350151,0.38409,2603.5,2603.2,0.38411]
[1727712350358,0.38409,2603.4,2603.1,3.2241]
[1727712350663,0.3841,2603.4,2603.2,0.38412]
[1727712351365,3.2078,2604.0,2603.3,7.0494]
[1727712351366,0.38407,2603.5,2603.3,7.0494]
[1727712351665,0.96008,2603.8,2603.3,3.2078]
[1727712351858,0.38407,2603.6,2603.4,0.38408]
[1727712352054,0.96008,2603.8,2603.3,3.2078]
[1727712352250,0.96008,2603.8,2603.5,0.38407]
[1727712352251,0.38406,2603.6,2603.5,0.38407]
[1727712352556,0.38404,2603.8,2603.6,0.38405]
[1727712352760,0.38404,2603.8,2603.3,3.2078]
[1727712352761,0.96003,2604.0,2603.3,3.2078]
[1727712353168,0.38404,2603.8,2603.6,0.38405]
[1727712353357,0.38404,2603.8,2603.7,0.38404]
[1727712353661,0.38404,2603.8,2603.6,3.2078]
[1727712353662,0.38402,2603.9,2603.6,3.59185]
[1727712353856,0.38404,2603.8,2603.7,0.38404]
[1727712354057,0.38404,2603.8,2603.7,2.03014]
[1727712354360,0.38404,2603.8,2603.7,1.6461]
[1727712354962,5.1399,2604.3,2603.7,1.6461]
[1727712355159,0.95988,2604.4,2604.0,0.384]
[1727712355360,0.38396,2604.3,2604.1,0.38397]
[1727712355555,0.9598,2604.6,2604.4,0.38394]
[1727712355556,0.38392,2604.6,2604.4,0.38394]
[1727712355865,0.38389,2604.8,2604.2,3.2078]
[1727712356060,0.95965,2605.0,2604.5,3.2078]
[1727712356061,0.3839,2604.7,2604.5,3.2078]
[1727712356362,0.95965,2605.0,2604.5,1.5947]
[1727712356561,3.2078,2605.1,2604.3,1.6461]
[1727712356759,3.2078,2605.1,2604.5,3.2078]
[1727712356951,3.2078,2605.1,2604.3,1.6461]
[1727712356952,0.38391,2604.7,2604.3,1.6461]
[1727712357261,0.38391,2604.6,2604.3,1.6461]
[1727712357565,0.95972,2604.8,2604.3,1.6461]
[1727712357760,3.2078,2605.1,2604.3,1.6461]
[1727712357963,0.95968,2604.9,2604.3,1.6461]
[1727712358153,0.38392,2604.6,2604.3,1.6461]
[1727712358369,0.38393,2604.5,2604.3,1.6461]
[1727712358557,0.38394,2604.4,2604.3,1.6461]
[1727712359155,5.79356752,2605.1,2604.3,1.6461]
[1727712359156,0.95968,2604.9,2604.3,1.6461]
[1727712359366,5.66044419,2605.1,2604.3,1.6461]
[1727712359564,0.38393,2604.5,2604.3,1.6461]
[1727712360265,0.95968,2604.9,2604.2,3.2078]
[1727712360457,0.38396,2604.3,2604.2,3.2078]
[1727712360656,0.38396,2604.3,2604.1,1.5947]
[1727712360657,0.38397,2604.2,2604.1,1.5947]
[1727712360960,0.38396,2604.3,2604.1,1.5947]
[1727712361954,1.6813,2604.7,2604.1,1.5947]
[1727712362155,0.38391,2604.7,2604.3,3.59174]
[1727712362368,3.2078,2604.8,2604.3,3.59174]
[1727712362567,0.38392,2604.6,2604.3,3.59174]
[1727712362975,0.38392,2604.6,2604.3,3.2078]
[1727712363467,3.2078,2604.8,2604.3,3.2078]
[1727712363668,0.38393,2604.5,2604.3,3.2078]
[1727712364265,0.38394,2604.4,2604.3,3.2078]
[1727712364464,0.95975,2604.7,2604.1,1.5947]
[1727712364767,0.38396,2604.3,2604.1,1.5947]
[1727712365066,0.95975,2604.7,2604.1,1.5947]
[1727712365266,0.95979,2604.6,2604.1,1.97868]
[1727712365569,0.38393,2604.5,2604.3,3.2078]
[1727712366573,0.38394,2604.4,2604.3,3.2078]
[1727712367865,0.38394,2604.5,2604.3,3.2078]
[1727712368065,0.38391,2604.7,2604.4,0.38394]
[1727712368371,3.2078,2604.8,2604.3,3.2078]
[1727712368667,0.38383,2605.2,2604.6,4.16758]
[1727712368861,0.38379,2605.4,2605.1,3.2078]
[1727712369062,0.95947,2605.5,2605.1,3.2078]
[1727712369268,0.3838,2605.4,2605.2,0.38382]
[1727712369570,2.45264419,2605.6,2605.1,3.2078]
[1727712369874,0.38379,2605.5,2605.3,0.38381]
[1727712370060,1.5213,2605.8,2605.4,0.38378]
[1727712370370,0.38376,2605.7,2605.4,3.2078]
[1727712370670,0.38377,2605.6,2605.4,3.2078]
[1727712370875,0.38378,2605.5,2605.4,3.2078]
[1727712372260,0.38378,2605.5,2605.0,1.6132]
[1727712372261,3.2078,2606.0,2605.0,1.6132]
[1727712372464,0.38382,2605.2,2605.0,1.99704]
[1727712373065,0.95948,2605.5,2605.0,1.99704]
[1727712373262,0.38382,2605.3,2605.0,1.99704]
[1727712373465,0.95939,2605.7,2605.0,1.6132]
[1727712373770,0.3838,2605.4,2605.2,3.59161]
[1727712373969,0.95939,2605.7,2605.2,3.2078]
[1727712374275,0.38381,2605.3,2605.2,3.2078]
[1727712374466,0.95944,2605.6,2605.2,3.59161]